{"text_format":"1","workbook":"xlsx","n_sheets":8,"sheets":["Instructivo","DEMANDA ANUAL","VOLUMEN DE QUEJAS","COSTO ADMINISTRACIÓN PÚBLICA","AUXILIAR COSTO ADMINISTRACIÓN","TIEMPO DE RESPUESTA","CANAL ATENCIÓN","RESUMEN"],"not_rendered":{"charts":0,"images":3,"macros":1,"external_links":0,"defined_names":0,"comments":5,"pivot_tables":0},"unopened":[],"bounds":{"document_bytes":16777216,"sheet_cells":100000,"rows_first":2000,"rows_last":500,"rows_between":2000,"halvings":0,"cell_chars":16384,"cell_head_chars":4096},"cells_cut":0,"cells_raw":0,"read":"whole","date_system":"1900"}

{"sheet":"Instructivo","index":0,"n_rows":74,"n_cols":1,"rows_kept":74,"cut":false,"hidden":false,"merged":[]}
[]
["CRITERIO DE PRIORIZACIÓN DE TRÁMITES ADMINISTRATIVOS"]
["Instructivo"]
["Esquema de puntuación"]
[]
["Las instituciones, previo a la elaboración de su plan de simplificación de trámites institucionales, deberán realizar la priorización de los trámites a ser simplificados."]
["Para priorizar un trámite, se realizará un análisis de criterios básicos y adicionales basado en información que disponen las instituciones sujetas a esta norma técnica. Cada criterio será puntuado según los lineamientos presentes en esta norma."]
[]
["a) Demanda Anual"]
["Considerará el volumen o frecuencia de las solicitudes que ingresan al año a cada institución para la gestión de un trámite en particular."]
["La identificación del volumen anual de los trámites se realizará a través de sus registros de transacciones y/o el número de visitas de consulta de información realizadas a través de páginas web institucionales."]
["Para realizar el registro realice lo siguiente:"]
["1.- Seleccione la hoja DEMANDA ANUAL"]
["2.- Ingrese los trámites de la institución registrando el identificador y nombre en las columnas respectivas.  Si usted requiere de acuerdo al número de trámites copie filas adicionales que estén dentro del cuadro"]
["3.- Para cada trámite debe especificar en la columna DEMANDA ANUAL el volumen o frecuencia anual, de acuerdo a lo mencionado anteriormente."]
["4.- Una vez terminado el llenado solicitado presione el botón ORDENAR."]
["5.- Usted visualizará el ordenamiento de los trámites ingresados de acuerdo al número de  volumen o frecuencia anual."]
["6.- Usted debe dividir en 4 grupos que contengan el mismo número de trámites o cercano:"]
["7.- Califique de acuerdo a lo siguiente: Primer grupo (trámites con menor demanda) = 0; Segundo Grupo = 12; Tercer Grupo = 21 y Cuarto Grupo= 30"]
[]
["b) Volumen de quejas asociadas a un trámite: "]
["Considerará la cantidad de quejas recibidas en relación a un trámite durante un año. Estas quejas deberán estar documentadas en medios físicos y/o digitales."]
["Para determinar la puntuación, se colocará en una tabla todos los trámites con sus correspondientes quejas ordenándose de menor a mayor. Se dividirá en 4 partes en los que cada grupo contenga la misma cantidad de trámites."]
["Para realizar el registro realice lo siguiente:"]
["1.- Seleccione la hoja VOLUMEN DE QUEJAS"]
["2.- Ingrese los trámites de la institución registrando el identificador y nombre en las columnas respectivas.  Si usted requiere de acuerdo al número de trámites copie filas adicionales que estén dentro del cuadro"]
["3.- Para cada trámite debe especificar en la columna VOLUMEN QUEJAS el número de quejas anual, de acuerdo a lo mencionado anteriormente."]
["4.- Una vez terminado el llenado solicitado presione el botón ORDENAR."]
["5.- Usted visualizará el ordenamiento de los trámites ingresados de acuerdo al número de  quejas."]
["6.- Usted debe dividir en 4 grupos que contengan el mismo número de trámites o cercano.:"]
["7.- Califique de acuerdo a lo siguiente: Primer grupo (trámites con cantidad de quejas) = 0; Segundo Grupo = 10; Tercer Grupo = 18 y Cuarto Grupo= 25"]
[]
["c) Costo para la administración pública: "]
["En cada trámite, basado en un caso estándar, se deberá estimar el costo incurrido en el costo de personal y recursos necesarios para su atención desde que el administrado entregó todos los requisitos hasta que la institución entregue el producto, respuesta o servicio requerido en el trámite. Se considerará:"]
["• Costo de personal:"]
["Costo del personal para atender el trámite, se excluyen actividades realizadas automáticamente o que dependen del administrado. El tiempo deberá considerar únicamente el tiempo efectivo de trabajo del personal, no debe considerar el tiempo de espera o de movimiento."]
["• Costo de recursos:"]
["Se deberá considerar el costo directo en el que la institución debe incurrir para atender un trámite. Se debe considerar los insumos o materia prima necesaria u cualquier otro que la institución considere pertinente."]
["Para realizar el registro realice lo siguiente:"]
["1.- Seleccione la hoja COSTO ADMINISTRACIÓN PÚBLICA"]
["2.- Ingrese los trámites de la institución registrando el identificador y nombre en las columnas respectivas.  Si usted requiere de acuerdo al número de trámites copie filas adicionales que estén dentro del cuadro"]
["3.- Para calcular el tiempo de las actividades, utilizar la hoja AUXILIAR COSTO ADMINISTRACIÓN donde deberá listar todas las actividades que realiza la institución en un caso estándar y asignar el tiempo mínimo que toma cada actvidad (en horas). El tiempo total de las actividades, deberá ingresar en la correspondiente celda de la hoja COSTO ADMINISTRACIÓN PÚBLICA"]
["4.- En función de la información registrada en el paso 3, la matriz entregará el costo del personal"]
["5.- Completar la columna \"Costo recursos\", en la cual ingresará el costo directo en el que incurre la institución para entregar el trámite. En este valor se considerarán los valores correspondientes a insumos y/o materia prima mínimos que se invierten por cada trámite (no se considera mano de obra)"]
["6.- La columna \"Costo para la adm. pública\" mostrará el costto de este criterio para cada trámite"]
["7.- Una vez que disponga del Costo para la administración pública, debe ordenar los trámites en función del menor al mayor costo"]
["8.- Usted debe dividir en 4 grupos que contengan el mismo número de trámites o cercano.:"]
["9.- Califique de acuerdo a lo siguiente: Primer grupo (trámites con menor costo para la administración) = 0; Segundo Grupo = 8; Tercer Grupo = 14 y Cuarto Grupo= 20"]
[]
["d) Tiempo de respuesta: "]
["Considerará los tiempos que a las instituciones les toma dar respuesta a un trámite desde que reciben la solicitud del administrado hasta la finalización del mismo. Para la definición del tiempo se considerará un caso estándar."]
["Para determinar la puntuación, se colocará en una tabla todos los trámites con el tiempo de respuesta, ordenándose de menor a mayor. Se dividirá en 4 grupos, en los que cada uno contenga la misma cantidad de trámites."]
["Para realizar el registro realice lo siguiente:"]
["1.- Seleccione la hoja TIEMPO DE RESPUESTA"]
["2.- Ingrese los trámites de la institución registrando el identificador y nombre en las columnas respectivas.  Si usted requiere de acuerdo al número de trámites copie filas adicionales que estén dentro del cuadro"]
["3.- Para cada trámite debe especificar en la columna TIEMPO RESPUESTA el tiempo, de acuerdo a lo mencionado anteriormente."]
["4.- Una vez terminado el llenado solicitado presione el botón ORDENAR."]
["5.- Usted visualizará el ordenamiento de los trámites ingresados de acuerdo al tiempo de respuesta."]
["6.- Usted dbe dividir en 4 grupos que contengan el mismo número de trámites o cercano.:"]
["7.- Califique de acuerdo a lo siguiente: Primer grupo (trámites con tiempo de respuesta) = 0; Segundo Grupo = 4; Tercer Grupo = 7 y Cuarto Grupo= 10"]
[]
["e) Canal de atención: "]
["Considerará los canales de atención a través de los cuales el administrado puede iniciar el trámite."]
["Para realizar el registro realice lo siguiente:"]
["1.- Seleccione la hoja CANAL ATENCIÓN"]
["2.- Ingrese los trámites de la institución registrando el identificador y nombre en las columnas respectivas.  Si usted requiere de acuerdo al número de trámites copie filas adicionales que estén dentro del cuadro"]
["3.- Para cada trámite debe seleccionar el canal de atención del trámite en la columna CANAL ATENCIÓN, que pueden ser: Totalmente en línea, Inicia en línea, Presencial, de acuerdo a lo mencionado anteriormente."]
["4.- De acuerdo a la selección usted obtendrá la puntuación del trámite que se visualizará en la columna PUNTUACIÓN."]
[]
["f) Resumen"]
["En esta hoja deberá consolidar todas las puntuaciones obtenidas para cada trámite en los criterios a) hasta e). Adicionalmente deberá analizar los 4 criterios adicionales que dispone la norma técnica, para estos últimos solamente deberá seleccionar en la celda correspondiente y la matriz asignará la puntuación adicional. Los criterios que deberá considerar son:\n- NECESIDADES CIUDADANAS: Si la institución ha implementado mecanismos para identificar necesidades ciudadanas respecto al trámite, seleccionar \"SI\", caso contrario, seleccionar \"NO\"\n- SUSCEPTIBILIDAD A CORRUPCIÓN: Si la institución dispone de información documentada sobre presuntos actos de corrupción, seleccionar \"SI\", caso contrario, seleccionar \"NO\"\n- VOLUMEN DE DEVOLUCIONES: Si la institución posee documentación sobre devoluciones del trámite en una cantidad significativa, seleccionar \"SI\", caso contrario, seleccionar \"NO\"\n- DESCONCENTRACIÓN: Si el trámite se realiza solo de forma presencial y, adicionalmente solo se atiende en la oficina matriz, seleccionar \"SI\", caso contrario, seleccionar \"NO\""]
["En la columna puntaje total se realizará la sumatoria de los valores de los criterios básicos y adicionales. Este valor deberá registrarse en la plataforma GOB.EC"]
[]
["PRIORIZACIÓN DE TRÁMITES: Una vez que se haya registrado el valor del diagnóstico económico y de la puntuación de todos y cada uno de los trámites publicados en la plataforma GOB.EC, la plataforma realizará la identificación de los trámites a simplificar de acuerdo a los criterios definidores en el artículo 11 de la norma técnica de diagnóstico económico y priorización de trámites administrativos"]

{"sheet":"DEMANDA ANUAL","index":1,"n_rows":17,"n_cols":9,"rows_kept":17,"cut":false,"hidden":false,"merged":[[1,0,1,3],[0,0,0,3]]}
["PRIORIZACIÓN DE TRÁMITES ADMINISTRATIVOS"]
["DEMANDA ANUAL",null,null,null,null,null,null,null,{"$f":"COUNTA(C5:C40)","v":13}]
[]
["IDENTIFICADOR","TRÁMITE","DEMANDA ANUAL","PUNTUACIÓN"]
["GADMM-CGUAC-001","Emisión de certificado de uso de suelo",780,21]
["GADMM-CGUAC-002","Emisión de tasa de habilitación (Permiso de Funcionamiento)",804,21]
["GADMM-DIRFIN-001","Solicitud de Patente Municipal por primera vez para Personas Jurídicas",15,0]
["GADMM-DIRFIN-002","Solicitud de Patente Municipal por primera vez para Personas Naturales",120,12]
["GADMM-DIRFIN-003","Solicitud de Patente Municipal para Personas Jurídicas",440,12]
["GADMM-DIRFIN-004","Solicitud de Patente Municipal para Personas Naturales",780,21]
["GADMM-DIRFIN-005","Impuesto a la transferencia de bienes inmuebles en el área urbana y rural del Cantón Milagro",2083,30]
["GADMM-DIRFIN-006","Pago del impuesto a la utilidad en la transferencia de bienes inmuebles en el área urbana del Cantón Milagro",1136,30]
["GADMM-DIRFIN-007","Pago del Impuesto 1,5 x 1000 a los activos totales de Personas Naturales obligadas a llevar contabilidad y Personas Jurídicas",313,12]
["GADMM-DIRFIN-008","Solicitud de Convenio de Facilidades de Pago para personas que mantienen una deuda vencida con el Municipio de Milagro",118,0]
["GADMM-DIRFIN-009","Solicitud de copia simple o certificada de procesos coactivos para personas que mantienen un juicio de coactiva con el Municipio de Milagro",1,0]
["GADMM-DIRFIN-010","Emisión de certificado de estar al día",1977,30]
["GADMM-DIRFIN-011","Emisión de certificado de no adeudar",1292,30]

{"sheet":"VOLUMEN DE QUEJAS","index":2,"n_rows":17,"n_cols":4,"rows_kept":17,"cut":false,"hidden":false,"merged":[[0,0,0,3],[1,0,1,3]]}
["PRIORIZACIÓN DE TRÁMITES ADMINISTRATIVOS"]
["VOLUMEN DE QUEJAS"]
[]
["IDENTIFICADOR","TRÁMITE","VOLUMEN QUEJAS","PUNTUACIÓN"]
["GADMM-CGUAC-001","Emisión de certificado de uso de suelo",0,0]
["GADMM-CGUAC-002","Emisión de tasa de habilitación (Permiso de Funcionamiento)",0,0]
["GADMM-DIRFIN-001","Solicitud de Patente Municipal por primera vez para Personas Jurídicas",0,0]
["GADMM-DIRFIN-002","Solicitud de Patente Municipal por primera vez para Personas Naturales",0,0]
["GADMM-DIRFIN-003","Solicitud de Patente Municipal para Personas Jurídicas",0,0]
["GADMM-DIRFIN-004","Solicitud de Patente Municipal para Personas Naturales",0,0]
["GADMM-DIRFIN-005","Impuesto a la transferencia de bienes inmuebles en el área urbana y rural del Cantón Milagro",0,0]
["GADMM-DIRFIN-006","Pago del impuesto a la utilidad en la transferencia de bienes inmuebles en el área urbana del Cantón Milagro",0,0]
["GADMM-DIRFIN-007","Pago del Impuesto 1,5 x 1000 a los activos totales de Personas Naturales obligadas a llevar contabilidad y Personas Jurídicas",0,0]
["GADMM-DIRFIN-008","Solicitud de Convenio de Facilidades de Pago para personas que mantienen una deuda vencida con el Municipio de Milagro",0,0]
["GADMM-DIRFIN-009","Solicitud de copia simple o certificada de procesos coactivos para personas que mantienen un juicio de coactiva con el Municipio de Milagro",0,0]
["GADMM-DIRFIN-010","Emisión de certificado de estar al día",0,0]
["GADMM-DIRFIN-011","Emisión de certificado de no adeudar",0,0]

{"sheet":"COSTO ADMINISTRACIÓN PÚBLICA","index":3,"n_rows":40,"n_cols":9,"rows_kept":40,"cut":false,"hidden":false,"merged":[[0,0,0,5],[1,0,1,5],[3,1,4,1],[3,0,4,0],[3,5,4,5],[3,2,3,4]]}
["PRIORIZACIÓN DE TRÁMITES ADMINISTRATIVOS"]
["COSTOS PARA LA ADMINISTRACIÓN PÚBLICA"]
[]
["IDENTIFICADOR","TRÁMITE","INSUMOS PARA COSTO",null,null,"COSTO PARA LA ADM. PÚBLICA",null,"SBU",733]
[null,null,"TIEMPO (HORAS)","COSTO PERSONAL","COSTO RECURSOS"]
["GADMM-CGUAC-001","Emisión de certificado de uso de suelo",0.25,{"$f":"C6*$I$4/160","v":1.1453125},1,{"$f":"D6+E6","v":2.1453125000000002}]
["GADMM-CGUAC-002","Emisión de tasa de habilitación (Permiso de Funcionamiento)",0.25,{"$f":"C7*$I$4/160","v":1.1453125},3,{"$f":"D7+E7","v":4.1453125000000002}]
["GADMM-DIRFIN-001","Solicitud de Patente Municipal por primera vez para Personas Jurídicas",0.25,1.1453125,1,2.1453125000000002]
["GADMM-DIRFIN-002","Solicitud de Patente Municipal por primera vez para Personas Naturales",0.25,1.1453125,1,2.1453125000000002]
["GADMM-DIRFIN-003","Solicitud de Patente Municipal para Personas Jurídicas",0.17,0.77881250000000013,1,1.7788125000000001]
["GADMM-DIRFIN-004","Solicitud de Patente Municipal para Personas Naturales",0.17,0.77881250000000013,1,1.7788125000000001]
["GADMM-DIRFIN-005","Impuesto a la transferencia de bienes inmuebles en el área urbana y rural del Cantón Milagro",0.17,0.77881250000000013,0.25,1.0288125000000001]
["GADMM-DIRFIN-006","Pago del impuesto a la utilidad en la transferencia de bienes inmuebles en el área urbana del Cantón Milagro",0.17,0.77881250000000013,0.25,1.0288125000000001]
["GADMM-DIRFIN-007","Pago del Impuesto 1,5 x 1000 a los activos totales de Personas Naturales obligadas a llevar contabilidad y Personas Jurídicas",0.17,0.77881250000000013,1,1.7788125000000001]
["GADMM-DIRFIN-008","Solicitud de Convenio de Facilidades de Pago para personas que mantienen una deuda vencida con el Municipio de Milagro",0.25,1.1453125,0,1.1453125]
["GADMM-DIRFIN-009","Solicitud de copia simple o certificada de procesos coactivos para personas que mantienen un juicio de coactiva con el Municipio de Milagro",0.17,0.77881250000000013,2,2.7788124999999999]
["GADMM-DIRFIN-010","Emisión de certificado de estar al día",0,0,2,2]
["GADMM-DIRFIN-011","Emisión de certificado de no adeudar",0,0,2,2]
[null,null,null,0,null,0]
[null,null,null,0,null,0]
[null,null,null,0,null,0]
[null,null,null,0,null,0]
[null,null,null,0,null,0]
[null,null,null,0,null,0]
[null,null,null,0,null,0]
[null,null,null,0,null,0]
[null,null,null,0,null,0]
[null,null,null,0,null,0]
[null,null,null,0,null,0]
[null,null,null,0,null,0]
[null,null,null,0,null,0]
[null,null,null,0,null,0]
[null,null,null,0,null,0]
[null,null,null,0,null,0]
[null,null,null,0,null,0]
[null,null,null,0,null,0]
[null,null,null,0,null,0]
[null,null,null,0,null,0]
[null,null,null,0,null,0]
[null,null,null,0,null,0]

{"sheet":"AUXILIAR COSTO ADMINISTRACIÓN","index":4,"n_rows":20,"n_cols":3,"rows_kept":20,"cut":false,"hidden":false,"merged":[[1,1,1,2]]}
[]
["TRÁMITE:"]
["NO.","ACTIVIDAD","TIEMPO (HORAS)"]
[1]
[2]
[3]
[4]
[5]
[6]
[7]
[8]
[9]
[10]
[11]
[12]
[13]
[14]
[15]
[]
[null,"SUMATORIA ACTIVIDADES",{"$f":"SUM(C4:C6)","v":0}]

{"sheet":"TIEMPO DE RESPUESTA","index":5,"n_rows":17,"n_cols":4,"rows_kept":17,"cut":false,"hidden":false,"merged":[[0,0,0,3],[1,0,1,3]]}
["PRIORIZACIÓN DE TRÁMITES ADMINISTRATIVOS"]
["TIEMPO DE RESPUESTA"]
[]
["IDENTIFICADOR","TRÁMITE","TIEMPO RESPUESTA","PUNTUACIÓN"]
["GADMM-CGUAC-001","Emisión de certificado de uso de suelo",24,10]
["GADMM-CGUAC-002","Emisión de tasa de habilitación (Permiso de Funcionamiento)",40,10]
["GADMM-DIRFIN-001","Solicitud de Patente Municipal por primera vez para Personas Jurídicas",40,10]
["GADMM-DIRFIN-002","Solicitud de Patente Municipal por primera vez para Personas Naturales",40,10]
["GADMM-DIRFIN-003","Solicitud de Patente Municipal para Personas Jurídicas",0.17,0]
["GADMM-DIRFIN-004","Solicitud de Patente Municipal para Personas Naturales",0.17,4]
["GADMM-DIRFIN-005","Impuesto a la transferencia de bienes inmuebles en el área urbana y rural del Cantón Milagro",0.17,4]
["GADMM-DIRFIN-006","Pago del impuesto a la utilidad en la transferencia de bienes inmuebles en el área urbana del Cantón Milagro",0.17,4]
["GADMM-DIRFIN-007","Pago del Impuesto 1,5 x 1000 a los activos totales de Personas Naturales obligadas a llevar contabilidad y Personas Jurídicas",0.17,7]
["GADMM-DIRFIN-008","Solicitud de Convenio de Facilidades de Pago para personas que mantienen una deuda vencida con el Municipio de Milagro",0.25,7]
["GADMM-DIRFIN-009","Solicitud de copia simple o certificada de procesos coactivos para personas que mantienen un juicio de coactiva con el Municipio de Milagro",0.17,7]
["GADMM-DIRFIN-010","Emisión de certificado de estar al día",0.08,0]
["GADMM-DIRFIN-011","Emisión de certificado de no adeudar",0.08,0]

{"sheet":"CANAL ATENCIÓN","index":6,"n_rows":40,"n_cols":14,"rows_kept":40,"cut":false,"hidden":false,"merged":[[0,0,0,3],[1,0,1,3]]}
["PRIORIZACIÓN DE TRÁMITES ADMINISTRATIVOS"]
["CANAL DE ATENCIÓN"]
[null,null,null,null,null,null,null,null,null,null,null,null,null,"Totalmente en línea"]
["IDENTIFICADOR","TRÁMITE","CANAL ATENCIÓN","PUNTUACIÓN",null,null,null,null,null,null,null,null,null,"Inicia en línea"]
["GADMM-CGUAC-001","Emisión de certificado de uso de suelo","Presencial",{"$f":"IF(ISBLANK(C5),\"\",IF(C5=\"Totalmente en línea\",0,IF(C5=\"Inicia en línea\",6,15)))","v":15},null,null,null,null,null,null,null,null,null,"Presencial"]
["GADMM-CGUAC-002","Emisión de tasa de habilitación (Permiso de Funcionamiento)","Presencial",{"$f":"IF(ISBLANK(C6),\"\",IF(C6=\"Totalmente en línea\",0,IF(C6=\"Inicia en línea\",6,15)))","v":15}]
["GADMM-DIRFIN-001","Solicitud de Patente Municipal por primera vez para Personas Jurídicas","Presencial",15]
["GADMM-DIRFIN-002","Solicitud de Patente Municipal por primera vez para Personas Naturales","Presencial",15]
["GADMM-DIRFIN-003","Solicitud de Patente Municipal para Personas Jurídicas","Presencial",15]
["GADMM-DIRFIN-004","Solicitud de Patente Municipal para Personas Naturales","Presencial",15]
["GADMM-DIRFIN-005","Impuesto a la transferencia de bienes inmuebles en el área urbana y rural del Cantón Milagro","Presencial",15]
["GADMM-DIRFIN-006","Pago del impuesto a la utilidad en la transferencia de bienes inmuebles en el área urbana del Cantón Milagro","Presencial",15]
["GADMM-DIRFIN-007","Pago del Impuesto 1,5 x 1000 a los activos totales de Personas Naturales obligadas a llevar contabilidad y Personas Jurídicas","Presencial",15]
["GADMM-DIRFIN-008","Solicitud de Convenio de Facilidades de Pago para personas que mantienen una deuda vencida con el Municipio de Milagro","Presencial",15]
["GADMM-DIRFIN-009","Solicitud de copia simple o certificada de procesos coactivos para personas que mantienen un juicio de coactiva con el Municipio de Milagro","Presencial",15]
["GADMM-DIRFIN-010","Emisión de certificado de estar al día","Inicia en línea",6]
["GADMM-DIRFIN-011","Emisión de certificado de no adeudar","Inicia en línea",6]
[null,null,null,""]
[null,null,null,""]
[null,null,null,""]
[null,null,null,""]
[null,null,null,""]
[null,null,null,""]
[null,null,null,""]
[null,null,null,""]
[null,null,null,""]
[null,null,null,""]
[null,null,null,""]
[null,null,null,""]
[null,null,null,""]
[null,null,null,""]
[null,null,null,""]
[null,null,null,""]
[null,null,null,""]
[null,null,null,""]
[null,null,null,""]
[null,null,null,""]
[null,null,null,""]
[null,null,null,""]
[null,null,null,""]

{"sheet":"RESUMEN","index":7,"n_rows":29,"n_cols":16,"rows_kept":29,"cut":false,"hidden":false,"merged":[[0,2,0,6],[0,7,0,14],[1,0,2,0],[1,1,2,1],[1,2,2,2],[1,3,2,3],[1,4,2,4],[1,5,2,5],[1,6,2,6],[1,15,2,15],[1,9,1,10],[1,7,1,8],[1,11,1,12],[1,13,1,14]]}
[null,null,"BÁSICOS",null,null,null,null,"ADICIONALES"]
["ID trámite","Nombre del trámite","Demanda","Quejas","Costo para administración","Tiempo de respuesta","Canal de atención","Necesidades ciudadanas",null,"Susceptibilidad a corrupción",null,"Volumen de devoluciones",null,"Desconcentración",null,"PUNTAJE TOTAL"]
[null,null,null,null,null,null,null,"Criterio","Puntuación","Criterio","Puntuación","Criterio","Puntuación","Criterio","Puntuación"]
["GADMM-CGUAC-001","Emisión de certificado de uso de suelo",780,0,{"$f":"C4+D4","v":780},10,{"$f":"IF(ISBLANK(F4),\"\",IF(F4=\"Totalmente en línea\",0,IF(F4=\"Inicia en línea\",6,15)))","v":15},null,{"$f":"IF(H4=\"SI\",20,0)","v":0},null,{"$f":"IF(J4=\"SI\",20,0)","v":0},null,{"$f":"IF(L4=\"SI\",20,0)","v":0},null,{"$f":"IF(N4=\"SI\",5,0)","v":0},{"$f":"SUM(C4:G4,I4,K4,M4,O4)","v":1585}]
["GADMM-CGUAC-002","Emisión de tasa de habilitación (Permiso de Funcionamiento)",804,0,{"$f":"C5+D5","v":804},10,{"$f":"IF(ISBLANK(F5),\"\",IF(F5=\"Totalmente en línea\",0,IF(F5=\"Inicia en línea\",6,15)))","v":15},null,{"$f":"IF(H5=\"SI\",20,0)","v":0},null,{"$f":"IF(J5=\"SI\",20,0)","v":0},null,{"$f":"IF(L5=\"SI\",20,0)","v":0},null,{"$f":"IF(N5=\"SI\",5,0)","v":0},{"$f":"SUM(C5:G5,I5,K5,M5,O5)","v":1633}]
["GADMM-DIRFIN-001","Solicitud de Patente Municipal por primera vez para Personas Jurídicas",15,0,15,10,15,null,0,null,0,null,0,null,0,55]
["GADMM-DIRFIN-002","Solicitud de Patente Municipal por primera vez para Personas Naturales",120,0,120,10,15,null,0,null,0,null,0,null,0,265]
["GADMM-DIRFIN-003","Solicitud de Patente Municipal para Personas Jurídicas",440,0,440,0,15,null,0,null,0,null,0,null,0,895]
["GADMM-DIRFIN-004","Solicitud de Patente Municipal para Personas Naturales",780,0,780,4,15,null,0,null,0,null,0,null,0,1579]
["GADMM-DIRFIN-005","Impuesto a la transferencia de bienes inmuebles en el área urbana y rural del Cantón Milagro",2083,0,2083,4,15,null,0,null,0,null,0,null,0,4185]
["GADMM-DIRFIN-006","Pago del impuesto a la utilidad en la transferencia de bienes inmuebles en el área urbana del Cantón Milagro",1136,0,1136,4,15,null,0,null,0,null,0,null,0,2291]
["GADMM-DIRFIN-007","Pago del Impuesto 1,5 x 1000 a los activos totales de Personas Naturales obligadas a llevar contabilidad y Personas Jurídicas",313,0,313,7,15,null,0,null,0,null,0,null,0,648]
["GADMM-DIRFIN-008","Solicitud de Convenio de Facilidades de Pago para personas que mantienen una deuda vencida con el Municipio de Milagro",118,0,118,7,15,null,0,null,0,null,0,null,0,258]
["GADMM-DIRFIN-009","Solicitud de copia simple o certificada de procesos coactivos para personas que mantienen un juicio de coactiva con el Municipio de Milagro",1,0,1,7,15,null,0,null,0,null,0,null,0,24]
["GADMM-DIRFIN-010","Emisión de certificado de estar al día",1977,0,1977,0,6,null,0,null,0,null,0,null,0,3960]
["GADMM-DIRFIN-011","Emisión de certificado de no adeudar",1292,0,1292,0,6,null,0,null,0,null,0,null,0,2590]
[null,null,null,null,null,null,null,null,0,null,0,null,0,null,0,0]
[null,null,null,null,null,null,null,null,0,null,0,null,0,null,0,0]
[null,null,null,null,null,null,null,null,0,null,0,null,0,null,0,0]
[null,null,null,null,null,null,null,null,0,null,0,null,0,null,0,0]
[null,null,null,null,null,null,null,null,0,null,0,null,0,null,0,0]
[null,null,null,null,null,null,null,null,0,null,0,null,0,null,0,0]
[null,null,null,null,null,null,null,null,0,null,0,null,0,null,0,0]
[null,null,null,null,null,null,null,null,0,null,0,null,0,null,0,0]
[null,null,null,null,null,null,null,null,0,null,0,null,0,null,0,0]
[null,null,null,null,null,null,null,null,0,null,0,null,0,null,0,0]
[null,null,null,null,null,null,null,null,0,null,0,null,0,null,0,0]
[null,null,null,null,null,null,null,null,0,null,0,null,0,null,0,0]
[null,null,null,null,null,null,null,null,0,null,0,null,0,null,0,0]